bitfinex/quotes_SOLUSD_20250802
["timestamp","ask_amount","ask_price","bid_price","bid_amount"]
[1754154579714,4.16041928,162.29,162.28,4.80156155]
[1754154581350,4.16041928,162.31,162.28,4.80156155]
[1754154581551,0.03,162.32,162.3,4.09156155]
[1754154581743,0.03,162.32,162.31,4.80156155]
[1754154581943,4.19040553,162.32,162.31,4.80156155]
[1754154582653,4.19040553,162.32,162.31,4.09156155]
[1754154584930,4.19040553,162.32,162.31,4.80156155]
[1754154586438,4.19040553,162.32,162.31,4.09156155]
[1754154590957,4.19040553,162.32,162.31,4.80156155]
[1754154592265,0.03,162.32,162.31,4.80156155]
[1754154592431,4.19040553,162.32,162.31,21.16780775]
[1754154592631,0.03,162.32,162.31,38.5685967]
[1754154592830,0.03,162.34,162.32,16.78468397]
[1754154593027,0.03,162.34,162.33,4.70759062]
[1754154593230,0.03,162.34,162.33,5.41759062]
[1754154593461,0.03,162.34,162.33,4.70759062]
[1754154593651,0.03,162.34,162.33,5.41759062]
[1754154594051,0.03,162.34,162.33,10.61133062]
[1754154594366,0.03,162.34,162.33,5.41759062]
[1754154597267,0.03,162.34,162.33,4.09156155]
[1754154597268,0.7,162.34,162.33,4.09156155]
[1754154597680,0.7,162.34,162.3,44.55]
[1754154597857,0.67,162.33,162.3,44.55]
[1754154598182,0.67,162.33,162.32,4.09156155]
[1754154598345,0.03,162.34,162.32,4.09156155]
[1754154598549,0.03,162.34,162.33,4.09156155]
[1754154599091,4.19040553,162.34,162.33,4.09156155]
[1754154599303,0.03,162.34,162.33,4.09156155]
[1754154599452,0.7,162.34,162.33,4.09156155]
[1754154599647,4.86040553,162.34,162.28,0.77]
[1754154599852,0.03,162.34,162.33,4.09156155]
[1754154600100,4.18134825,162.34,162.33,4.09156155]
[1754154600258,4.18134825,162.34,162.28,0.06]
[1754154600461,26.0,162.32,162.28,0.06]
[1754154600654,4.82134825,162.33,162.29,4.09156155]
[1754154600655,30.15134825,162.31,162.29,4.09156155]
[1754154600850,4.81134825,162.3,162.28,0.06]
[1754154601156,4.15134825,162.3,162.29,6.39234164]
[1754154601358,4.15134825,162.32,162.29,6.39234164]
[1754154601689,4.15134825,162.32,162.31,6.39234164]
[1754154601988,4.15134825,162.33,162.31,6.39234164]
[1754154602159,4.15134825,162.33,162.28,0.78]
[1754154602160,4.15134825,162.32,162.28,0.06]
[1754154602353,4.81134825,162.32,162.28,0.78]
[1754154602588,0.66,162.31,162.28,0.06]
[1754154602869,0.66,162.3,162.28,0.06]
[1754154603072,4.15134825,162.31,162.28,0.06]
[1754154603278,0.66,162.29,162.28,6.45234164]
[1754154604156,4.81134825,162.29,162.28,6.45234164]
[1754154604358,0.66,162.29,162.28,6.45234164]
[1754154604786,4.81134825,162.29,162.28,6.45234164]
[1754154604992,4.15134825,162.31,162.28,0.06]
[1754154605210,0.66,162.29,162.28,6.45234164]
[1754154605496,4.81134825,162.29,162.28,6.45234164]
[1754154605802,0.66,162.29,162.28,6.45234164]
[1754154607873,4.81260191,162.29,162.28,6.45234164]
[1754154608066,0.66,162.29,162.28,6.45234164]
[1754154608568,4.81260191,162.29,162.28,6.45234164]
[1754154608769,0.66,162.29,162.28,6.45234164]
[1754154609190,4.81260191,162.29,162.28,6.45234164]
[1754154609364,0.66,162.29,162.28,6.45234164]
[1754154609799,4.81260191,162.29,162.28,6.45234164]
[1754154610099,4.81260191,162.31,162.28,6.45234164]
[1754154610303,4.81260191,162.3,162.29,6.39234164]
[1754154610595,4.15260191,162.31,162.29,6.39234164]
[1754154610800,4.15260191,162.3,162.29,6.39234164]
[1754154612799,0.66,162.31,162.28,0.06]
[1754154612800,4.15260191,162.31,162.28,0.06]
[1754154612999,0.03,162.32,162.28,0.06]
[1754154613000,4.15260191,162.3,162.28,0.06]
[1754154613177,0.03,162.32,162.28,0.06]
[1754154613178,4.15260191,162.31,162.29,0.72]
[1754154613498,4.15260191,162.31,162.3,0.72]
[1754154613794,0.03,162.32,162.3,0.72]
[1754154613987,4.18260191,162.32,162.3,0.72]
[1754154614195,0.03,162.32,162.31,6.39234164]
[1754154614503,4.18260191,162.32,162.31,6.39234164]
[1754154614674,0.03,162.32,162.31,6.39234164]
[1754154615003,4.18260191,162.32,162.31,6.39234164]
[1754154615198,0.03,162.32,162.31,6.39234164]
[1754154615502,4.84260191,162.32,162.3,6.39234164]
[1754154615795,4.15260191,162.31,162.28,0.78]
[1754154615967,0.03,162.32,162.29,0.72]
[1754154616171,4.18260191,162.32,162.29,0.72]
[1754154616803,4.18260191,162.32,162.31,6.39234164]
[1754154616977,4.84260191,162.32,162.31,6.39234164]
[1754154617179,0.69,162.32,162.31,6.39234164]
[1754154617385,4.84260191,162.32,162.31,6.39234164]
[1754154617582,0.69,162.32,162.31,6.39234164]
[1754154617773,4.84260191,162.32,162.31,6.39234164]
[1754154617973,0.69,162.32,162.31,6.39234164]
[1754154618207,4.84260191,162.32,162.31,6.39234164]
[1754154618989,4.18260191,162.32,162.31,6.39234164]
[1754154619186,4.18260191,162.32,162.29,0.72]
[1754154619389,0.03,162.32,162.31,6.39234164]
[1754154619705,4.18151478,162.32,162.31,6.39234164]
[1754154621016,4.84151478,162.32,162.31,6.39234164]
[1754154621176,4.84151478,162.32,162.29,6.39234164]
[1754154621377,4.81151478,162.31,162.29,6.39234164]
[1754154621693,4.81151478,162.31,162.3,6.39234164]
[1754154621889,4.15151478,162.31,162.3,6.39234164]
[1754154622700,4.81151478,162.31,162.3,6.39234164]
[1754154624088,4.81151478,162.31,162.28,0.06]
[1754154624089,4.81151478,162.31,162.28,6.45234164]
[1754154624404,4.81151478,162.3,162.28,0.06]
[1754154624579,4.81151478,162.3,162.28,6.45234164]
[1754154624580,4.15151478,162.29,162.28,6.45234164]
[1754154624901,4.81151478,162.29,162.28,6.45234164]
[1754154625212,0.66,162.29,162.28,6.45234164]
[1754154625419,4.15151478,162.29,162.28,6.45234164]
[1754154625590,4.15151478,162.3,162.28,6.45234164]
[1754154625903,44.46,162.31,162.29,6.39234164]
[1754154626087,4.15149645,162.3,162.29,6.39234164]
[1754154627406,4.81149645,162.3,162.29,6.39234164]
[1754154627820,4.81149645,162.3,162.28,6.45234164]
[1754154628112,4.15149645,162.29,162.28,6.45234164]
[1754154628313,0.66,162.29,162.28,6.45234164]
[1754154628480,0.66,162.29,162.28,0.06]
[1754154628481,30.81149645,162.29,162.28,0.06]
[1754154630088,37.20383809,162.29,162.27,0.06]
[1754154630284,71.78852206,162.28,162.27,0.06]
[1754154631314,76.9773091,162.28,162.27,0.06]
[1754154631685,71.78852206,162.28,162.27,0.06]
[1754154633304,76.97055706,162.28,162.27,0.06]
[1754154634519,71.78852206,162.28,162.27,0.06]
[1754154634887,33.17055706,162.28,162.27,0.06]
[1754154635202,76.97055706,162.28,162.27,0.06]
[1754154635819,71.78852206,162.28,162.27,0.06]
[1754154637293,65.39618042,162.28,162.27,0.06]
[1754154637492,30.15149645,162.28,162.27,0.06]
[1754154637704,97.79852206,162.28,162.27,0.06]
[1754154640922,102.98055706,162.28,162.27,0.06]
[1754154641731,90.73618042,162.28,162.27,0.06]
[1754154642430,4.15149645,162.28,162.27,7.13234164]
[1754154642993,4.15149645,162.29,162.27,7.13234164]
[1754154643231,26.0,162.29,162.28,7.07234164]
[1754154643408,30.15149645,162.29,162.28,7.07234164]
[1754154644417,4.15149645,162.29,162.28,7.07234164]
[1754154644606,4.15149645,162.3,162.28,7.07234164]
[1754154644790,0.03,162.32,162.29,7.07234164]
[1754154645106,0.03,162.32,162.31,6.39234164]
[1754154645427,0.03,162.32,162.31,7.07234164]
[1754154650012,0.03,162.32,162.31,6.39234164]
[1754154650220,0.03,162.32,162.31,7.07234164]
[1754154651031,0.03,162.32,162.27,0.06]
[1754154651032,0.03,162.32,162.29,0.68]
[1754154651334,0.03,162.32,162.31,6.39234164]
[1754154651701,0.03,162.32,162.31,7.07234164]
[1754154653330,0.03,162.32,162.28,0.68]
[1754154653537,0.03,162.32,162.31,6.39234164]
[1754154654840,0.03,162.32,162.31,7.07234164]
[1754154657740,0.03,162.32,162.31,6.39234164]
[1754154658823,0.03,162.32,162.31,7.07234164]
[1754154661159,0.03,162.32,162.31,13.46468328]
[1754154661543,0.03,162.32,162.31,14.08078826]
[1754154662547,0.03,162.32,162.31,13.46468328]
[1754154663740,0.03,162.34,162.31,13.46468328]
[1754154663936,0.03,162.34,162.33,6.39234164]
[1754154664428,0.03,162.34,162.33,7.07234164]
[1754154671759,0.03,162.34,162.33,6.39234164]
[1754154674831,0.03,162.34,162.33,7.07234164]
[1754154676846,0.03,162.34,162.33,6.39234164]
[1754154677425,0.03,162.34,162.33,7.07234164]
[1754154678838,0.66,162.38,162.33,7.68837071]
[1754154679040,5.27946076,162.4,162.37,6.39234164]
[1754154679250,5.27946076,162.4,162.39,6.39234164]
[1754154679755,5.93946076,162.4,162.39,6.39234164]
[1754154681142,5.27946076,162.4,162.39,6.39234164]
[1754154681371,5.27946076,162.4,162.39,12.78468328]
[1754154683766,5.27946076,162.4,162.39,56.48468328]
[1754154684073,5.93946076,162.4,162.39,6.39234164]
[1754154685069,5.93946076,162.4,162.39,13.46468328]
[1754154685070,5.27946076,162.4,162.39,13.46468328]
[1754154686435,5.27946076,162.4,162.39,7.07234164]
[1754154687156,5.27946076,162.4,162.39,6.39234164]
[1754154687749,5.27946076,162.4,162.39,13.46468328]
[1754154688164,5.27946076,162.4,162.39,6.39234164]
[1754154688535,5.27946076,162.4,162.39,7.07234164]
[1754154692465,5.30946076,162.4,162.39,6.39234164]
[1754154693776,6.01946076,162.4,162.37,89.1]
[1754154693977,5.30946076,162.4,162.39,6.39234164]
[1754154694653,6.01946076,162.4,162.39,6.39234164]
[1754154695256,5.30946076,162.4,162.39,6.39234164]
[1754154695462,5.30946076,162.4,162.39,7.09234164]
[1754154696049,5.30946076,162.4,162.39,6.39234164]
[1754154696250,6.01946076,162.4,162.39,6.39234164]
[1754154700880,5.30946076,162.4,162.39,6.39234164]
[1754154701075,6.01946076,162.4,162.39,6.39234164]
[1754154702252,6.01946076,162.4,162.38,43.68]
[1754154702459,6.01946076,162.4,162.39,6.39234164]
[1754154703488,10.16286885,162.4,162.39,6.39234164]
[1754154703700,6.01946076,162.4,162.39,6.39234164]
[1754154705677,5.30946076,162.4,162.39,6.39234164]
[1754154707483,5.30946076,162.4,162.38,44.38]
[1754154707690,5.30946076,162.4,162.39,6.39234164]
[1754154709111,5.30946076,162.4,162.39,0.7]
[1754154709402,5.30946076,162.4,162.39,7.09234164]
[1754154712198,5.30946076,162.4,162.39,6.39234164]
[1754154712427,5.30946076,162.4,162.39,7.09234164]
[1754154713238,5.30946076,162.4,162.39,6.39234164]
[1754154714117,5.30946076,162.4,162.39,50.05234164]
[1754154717033,5.30946076,162.4,162.39,50.75234164]
[1754154718530,5.30946076,162.4,162.39,50.05234164]
[1754154719606,5.30946076,162.4,162.39,50.75234164]
[1754154720412,9.46120961,162.4,162.39,50.05234164]
[1754154720837,9.46120961,162.4,162.39,47.74488523]
[1754154721135,10.13120961,162.4,162.39,47.74488523]
[1754154721632,5.97946076,162.4,162.39,47.74488523]
[1754154721806,10.13120961,162.4,162.39,47.74488523]
[1754154722209,5.97946076,162.4,162.39,47.72488523]
[1754154722412,10.13120961,162.4,162.39,47.72488523]
[1754154723119,10.13120961,162.4,162.39,4.08488523]
[1754154725602,9.46120961,162.4,162.39,4.08488523]
[1754154727328,9.46120961,162.4,162.39,4.73488523]
[1754154729834,9.46120961,162.4,162.39,4.08488523]
[1754154730401,10.13120961,162.4,162.39,4.08488523]
[1754154730631,9.46120961,162.4,162.39,4.08488523]
[1754154731501,9.46120961,162.4,162.38,43.62]
[1754154731502,10.13120961,162.4,162.38,4.08488523]
[1754154731702,4.82174885,162.39,162.38,4.08488523]
[1754154732935,4.82174885,162.39,162.37,6.38527199]
[1754154733142,4.82174885,162.38,162.37,6.38527199]
[1754154733449,4.15174885,162.38,162.37,7.03527199]
[1754154733641,4.15174885,162.38,162.37,50.65527199]
[1754154734751,4.15174885,162.38,162.37,50.00527199]
[1754154734953,4.82174885,162.38,162.37,50.00527199]
[1754154735133,4.15174885,162.38,162.37,50.00527199]
[1754154736150,4.15174885,162.38,162.37,6.38527199]
[1754154737761,4.15174885,162.38,162.37,7.03527199]
[1754154738322,4.15174885,162.38,162.37,6.38527199]
[1754154740148,4.15174885,162.38,162.37,7.03527199]
[1754154740361,4.15174885,162.38,162.37,6.38527199]
[1754154741040,4.15174885,162.38,162.36,43.62]
[1754154741247,3.65174885,162.37,162.36,43.62]
[1754154741457,0.67,162.39,162.36,43.62]
[1754154741956,0.67,162.39,162.36,44.27]
[1754154742461,0.67,162.39,162.38,6.38527199]
[1754154743152,0.67,162.39,162.36,44.27]
[1754154743153,0.67,162.39,162.37,6.38527199]
[1754154743330,0.67,162.39,162.36,43.6]
[1754154743531,0.67,162.39,162.37,6.38527199]
[1754154744262,0.67,162.38,162.37,6.38527199]
[1754154745460,10.50694722,162.4,162.37,7.03527199]
[1754154745658,10.50694722,162.4,162.39,6.38527199]
[1754154745659,5.30946076,162.4,162.39,6.38527199]
[1754154746045,4.80946076,162.4,162.39,6.38527199]
[1754154746864,5.47946076,162.4,162.36,0.65]
[1754154747045,5.47946076,162.4,162.39,6.38527199]
[1754154747953,5.47946076,162.4,162.37,6.38527199]
[1754154748255,0.67,162.39,162.37,6.38527199]
[1754154748472,0.67,162.38,162.37,6.38527199]
[1754154748671,10.00694722,162.4,162.37,6.38527199]
[1754154748969,0.67,162.39,162.37,6.38527199]
[1754154749137,0.67,162.38,162.37,6.38527199]
[1754154750545,10.67694722,162.4,162.37,6.38527199]
[1754154750751,5.47946076,162.4,162.38,6.38527199]
[1754154751293,4.80946076,162.4,162.38,7.07527199]
[1754154751734,4.80946076,162.4,162.38,6.38527199]
[1754154752161,5.48946076,162.4,162.38,6.38527199]
[1754154752867,4.80946076,162.4,162.38,4.7762667]
[1754154753164,4.15612879,162.39,162.38,4.0862667]
[1754154753339,4.83612879,162.39,162.34,43.66]
[1754154753538,4.80946076,162.4,162.34,43.66]
[1754154753539,4.83612879,162.38,162.36,4.0862667]
[1754154753770,4.15612879,162.37,162.36,4.0862667]
[1754154754754,4.15612879,162.37,162.36,6.38628692]
[1754154757074,4.83612879,162.39,162.36,6.38628692]
[1754154757249,4.15612879,162.38,162.37,6.38628692]
[1754154757449,4.83612879,162.38,162.37,6.38628692]
[1754154758379,4.83612879,162.38,162.35,0.69]
[1754154758557,4.15612879,162.37,162.35,0.69]
[1754154758869,4.15612879,162.37,162.36,6.38628692]
[1754154759376,4.83612879,162.37,162.34,50.04628692]
[1754154759664,30.83612879,162.36,162.34,6.44628692]
[1754154759873,4.83612879,162.35,162.34,6.44628692]
[1754154760870,4.15612879,162.35,162.34,6.44628692]
[1754154761180,4.83612879,162.35,162.34,6.44628692]
[1754154761860,4.15612879,162.35,162.34,6.44628692]
[1754154762258,4.83612879,162.35,162.34,0.06]
[1754154762489,30.83612879,162.35,162.34,0.06]
[1754154763882,30.15612879,162.35,162.34,0.06]
[1754154764043,4.15612879,162.35,162.34,6.44628692]
[1754154764445,4.15612879,162.35,162.34,7.13628692]
[1754154765176,4.15612879,162.37,162.34,7.13628692]
[1754154765382,4.15135171,162.37,162.36,6.38628692]
[1754154765689,4.15078958,162.39,162.36,7.07628692]
[1754154765852,4.80946076,162.4,162.38,6.38628692]
[1754154766055,4.80946076,162.4,162.39,6.38628692]
[1754154766056,8.96025034,162.4,162.39,6.38628692]
[1754154766349,8.96025034,162.4,162.38,0.69]
[1754154766567,4.80946076,162.4,162.39,6.38628692]
[1754154766946,8.96036483,162.4,162.39,6.38628692]
[1754154767563,4.80946076,162.4,162.39,6.38628692]
[1754154767759,8.96036483,162.4,162.39,6.38628692]
[1754154768054,4.80946076,162.4,162.39,6.38628692]
[1754154768276,8.96036483,162.4,162.39,6.38628692]
[1754154771368,9.64036483,162.4,162.38,6.38628692]
[1754154771572,4.15090407,162.39,162.38,6.38628692]
[1754154773671,4.15090407,162.39,162.38,7.07628692]
[1754154774058,4.80946076,162.4,162.38,7.07628692]
[1754154774262,8.96036483,162.4,162.39,0.69]
[1754154774458,4.80946076,162.4,162.39,7.07628692]
[1754154774663,8.96036483,162.4,162.39,7.07628692]
[1754154774887,8.96036483,162.4,162.39,4.77540602]
[1754154775693,8.96036483,162.4,162.39,0.69]
[1754154775996,8.96036483,162.4,162.39,4.77540602]
[1754154777489,8.96036483,162.4,162.39,4.08540602]
[1754154777711,8.96036483,162.4,162.39,4.77540602]
[1754154781496,8.96036483,162.4,162.39,4.08540602]
[1754154782585,8.96036483,162.4,162.39,4.78540602]
[1754154782888,8.96036483,162.4,162.39,4.08540602]
[1754154783217,4.80946076,162.4,162.39,4.08540602]
[1754154783430,8.96036483,162.4,162.39,4.08540602]
[1754154786780,8.96036483,162.4,162.39,4.78540602]
[1754154787501,8.96036483,162.4,162.39,4.08540602]
[1754154787712,4.80946076,162.4,162.39,4.08540602]
[1754154787895,8.96036483,162.4,162.39,4.08540602]
[1754154788310,4.80946076,162.4,162.39,4.08540602]
[1754154789425,8.96036483,162.4,162.39,4.08540602]
[1754154789884,4.80946076,162.4,162.39,4.08540602]
[1754154790086,8.96036483,162.4,162.39,4.08540602]
[1754154790487,4.80946076,162.4,162.39,4.08540602]
[1754154790822,8.96036483,162.4,162.39,4.08540602]
[1754154791114,4.80946076,162.4,162.39,4.08540602]
[1754154791339,8.96036483,162.4,162.39,4.08540602]
[1754154791521,4.80946076,162.4,162.39,4.08540602]
[1754154793423,4.80946076,162.4,162.39,4.78540602]
[1754154796542,8.96036483,162.4,162.39,4.78540602]
[1754154796717,4.80946076,162.4,162.39,4.78540602]
[1754154797115,4.80946076,162.4,162.39,4.08540602]
[1754154798445,4.80946076,162.4,162.39,4.78540602]
[1754154799624,4.80946076,162.4,162.39,4.08540602]
[1754154802118,8.95941754,162.4,162.39,4.08540602]
[1754154802612,4.80946076,162.4,162.39,4.08540602]
[1754154802815,5.48946076,162.4,162.39,4.08540602]
[1754154803948,9.63941754,162.4,162.39,4.08540602]
[1754154804144,5.48946076,162.4,162.39,4.08540602]
[1754154804718,4.80946076,162.4,162.39,4.08540602]
[1754154805851,4.80946076,162.4,162.39,4.78540602]
[1754154810408,8.96109642,162.4,162.39,4.78540602]
[1754154810610,4.80946076,162.4,162.39,4.78540602]
[1754154811441,4.80946076,162.4,162.39,4.08540602]
[1754154811645,8.96685551,162.4,162.39,4.08540602]
[1754154811811,4.80946076,162.4,162.39,4.08540602]
[1754154812019,8.96685551,162.4,162.39,4.08540602]
[1754154813540,8.96685551,162.4,162.39,4.78540602]
[1754154813851,4.80946076,162.4,162.39,4.78540602]
[1754154814044,8.96685551,162.4,162.39,4.78540602]
[1754154814412,4.80946076,162.4,162.39,30.78540602]
[1754154814613,8.96685551,162.4,162.39,30.78540602]
[1754154814807,4.80946076,162.4,162.39,4.08540602]
[1754154815045,8.96685551,162.4,162.39,4.08540602]
[1754154815471,4.80946076,162.4,162.39,4.08540602]
[1754154815639,8.96685551,162.4,162.39,4.08540602]
[1754154815962,4.80946076,162.4,162.39,4.08540602]
[1754154816160,8.96685551,162.4,162.39,4.08540602]
[1754154816386,4.80946076,162.4,162.39,21.1270301]
[1754154817068,4.80946076,162.4,162.39,74.28540602]
[1754154817569,4.80946076,162.4,162.39,90.6270301]
[1754154818074,4.80946076,162.4,162.39,74.28540602]
[1754154818251,4.80946076,162.4,162.39,73.58540602]
[1754154818936,4.80946076,162.4,162.39,30.78540602]
[1754154819142,4.80946076,162.4,162.39,74.28540602]
[1754154819362,4.80946076,162.4,162.39,48.28540602]
[1754154819978,4.80946076,162.4,162.39,64.6270301]
[1754154821144,4.80946076,162.4,162.39,43.5]
[1754154821470,4.80946076,162.4,162.39,47.58540602]
[1754154821671,4.80946076,162.4,162.39,48.28540602]
[1754154821864,4.80946076,162.4,162.39,47.58540602]
[1754154822462,4.80946076,162.4,162.39,43.5]
[1754154822685,4.80946076,162.4,162.39,47.58540602]
[1754154823179,4.80946076,162.4,162.39,48.28540602]
[1754154828168,4.80946076,162.4,162.39,47.58540602]
[1754154833080,8.96640833,162.4,162.39,47.58540602]
[1754154833465,4.80946076,162.4,162.39,47.58540602]
[1754154833769,8.96640833,162.4,162.39,47.58540602]
[1754154834205,4.80946076,162.4,162.39,47.58540602]
[1754154834367,8.96640833,162.4,162.39,47.58540602]
[1754154834568,8.96640833,162.4,162.39,48.28540602]
[1754154834871,8.96640833,162.4,162.39,48.26540602]
[1754154835087,4.80946076,162.4,162.39,48.26540602]
[1754154835392,8.96640833,162.4,162.39,48.26540602]
[1754154835901,4.80946076,162.4,162.39,74.26540602]
[1754154836080,8.96640833,162.4,162.39,74.26540602]
[1754154836485,4.80946076,162.4,162.39,74.26540602]
[1754154836868,8.96640833,162.4,162.39,74.26540602]
[1754154837177,4.80946076,162.4,162.39,74.26540602]
[1754154837574,8.96640833,162.4,162.39,74.26540602]
[1754154837768,4.80946076,162.4,162.39,90.6070301]
[1754154839885,4.80946076,162.4,162.39,74.26540602]
[1754154840200,4.80946076,162.4,162.39,21.1270301]
[1754154840380,4.80946076,162.4,162.39,30.78540602]
[1754154840584,4.80946076,162.4,162.39,47.1270301]
[1754154841388,4.80946076,162.4,162.39,30.08540602]
[1754154842694,4.80946076,162.4,162.39,46.4270301]
[1754154843101,4.80946076,162.4,162.39,47.1470301]
[1754154844409,4.80946076,162.4,162.39,46.4270301]
[1754154846201,4.80946076,162.4,162.39,47.1470301]
[1754154847701,4.80946076,162.4,162.39,46.4270301]
[1754154847873,4.80946076,162.4,162.39,30.08540602]
[1754154848599,4.80946076,162.4,162.39,4.08540602]
[1754154851004,4.80946076,162.4,162.39,20.4270301]
[1754154851408,8.97056083,162.4,162.39,20.4270301]
[1754154851582,4.80946076,162.4,162.39,20.4270301]
[1754154851923,9.62056083,162.4,162.39,4.08540602]
[1754154852094,5.45946076,162.4,162.39,4.08540602]
[1754154852997,9.62056083,162.4,162.39,4.08540602]
[1754154853192,5.45946076,162.4,162.39,4.08540602]
[1754154853398,4.80946076,162.4,162.39,4.08540602]
[1754154853895,8.97056083,162.4,162.39,4.08540602]
[1754154854194,4.80946076,162.4,162.39,4.08540602]
[1754154855931,9.62033176,162.4,162.39,4.08540602]
[1754154856718,4.80946076,162.4,162.39,4.08540602]
[1754154857098,5.45946076,162.4,162.39,4.08540602]
[1754154857298,9.62033176,162.4,162.39,4.08540602]
[1754154857501,8.97033176,162.4,162.38,5.257735]
[1754154857724,5.45946076,162.4,162.39,4.08540602]
[1754154858217,9.62067581,162.4,162.39,4.08540602]
[1754154858796,8.97067581,162.4,162.39,4.08540602]
[1754154859216,8.97067581,162.4,162.39,30.08540602]
[1754154859726,4.80946076,162.4,162.39,47.1470301]
[1754154862200,4.80946076,162.4,162.39,46.4270301]
[1754154863311,4.80946076,162.4,162.39,47.1470301]
[1754154866033,4.80946076,162.4,162.39,46.4270301]
[1754154866398,4.80946076,162.4,162.39,47.1470301]
[1754154866917,4.80946076,162.4,162.39,30.80540602]
[1754154867125,4.80946076,162.4,162.39,30.08540602]
[1754154867928,9.62016626,162.4,162.39,30.08540602]
[1754154868106,9.62016626,162.4,162.39,4.08540602]
[1754154869727,9.62016626,162.4,162.38,0.06]
[1754154869914,4.8107055,162.39,162.38,4.14540602]
[1754154870731,4.8107055,162.39,162.38,0.06]
[1754154870944,4.8107055,162.39,162.38,4.14540602]
[1754154871835,4.8107055,162.39,162.37,0.06]
[1754154871836,16.78468397,162.38,162.37,0.06]
[1754154871999,21.63538947,162.38,162.37,0.06]
[1754154872196,26.82930542,162.38,162.37,0.06]
[1754154872610,21.63538947,162.38,162.37,0.06]
[1754154873010,25.72079549,162.38,162.37,0.06]
[1754154873210,30.91083591,162.38,162.37,0.06]
[1754154874317,26.82542989,162.38,162.37,0.06]
[1754154874519,30.91083591,162.38,162.37,0.06]
[1754154875142,25.72079549,162.38,162.37,0.06]
[1754154875841,30.91083591,162.38,162.37,0.06]
[1754154876022,28.19153249,162.38,162.37,0.06]
[1754154876742,71.63153249,162.38,162.37,0.06]
[1754154878246,76.80719522,162.38,162.37,0.06]
[1754154878828,71.63153249,162.38,162.37,0.06]
[1754154879222,76.80482062,162.38,162.37,0.06]
[1754154881229,71.63153249,162.38,162.37,0.06]
[1754154881445,69.16079549,162.38,162.37,0.06]
[1754154882252,25.72079549,162.38,162.37,0.06]
[1754154882458,69.16079549,162.38,162.37,0.06]
[1754154883322,71.63138049,162.38,162.37,0.06]
[1754154884619,65.07538947,162.38,162.37,0.06]
[1754154884824,69.16079549,162.38,162.37,0.06]
[1754154885421,21.63538947,162.38,162.37,0.06]
[1754154885626,20.94538947,162.38,162.37,0.77]
[1754154885825,64.38538947,162.38,162.37,0.06]
[1754154888234,65.07538947,162.38,162.37,0.06]
[1754154889558,47.6007055,162.38,162.37,4.85540602]
[1754154889855,43.44,162.38,162.37,4.85540602]
[1754154891364,43.44,162.38,162.37,4.14540602]
[1754154891861,43.44,162.38,162.37,4.85540602]
[1754154892864,30.80946076,162.4,162.37,4.85540602]
[1754154893055,43.44,162.38,162.37,0.06]
[1754154893862,43.44,162.38,162.37,0.77]
[1754154894260,43.44,162.38,162.37,4.85540602]
[1754154894765,30.80946076,162.4,162.37,4.85540602]
[1754154895061,43.44,162.38,162.37,0.06]
[1754154895449,43.44,162.38,162.37,0.77]
[1754154896048,43.44,162.38,162.37,4.85540602]
[1754154896635,4.80946076,162.4,162.37,4.85540602]
[1754154896835,4.80946076,162.4,162.38,4.08540602]
[1754154897135,4.80946076,162.4,162.39,4.79540602]
[1754154897351,48.24946076,162.4,162.39,4.79540602]
[1754154897555,52.38026801,162.4,162.39,4.79540602]
[1754154897762,8.94026801,162.4,162.39,4.08540602]
[1754154897950,48.24946076,162.4,162.39,0.71]
[1754154898152,48.24946076,162.4,162.39,4.79540602]
[1754154899965,48.22946076,162.4,162.39,4.79540602]
[1754154900556,48.22946076,162.4,162.37,0.06]
[1754154900866,48.22946076,162.4,162.39,4.08540602]
[1754154901160,4.80946076,162.4,162.39,4.76540602]
[1754154901349,48.22946076,162.4,162.39,4.76540602]
[1754154901942,48.22946076,162.4,162.39,0.68]
[1754154902147,4.80946076,162.4,162.39,4.76540602]
[1754154902347,4.80946076,162.4,162.39,0.68]
[1754154902560,4.80946076,162.4,162.39,4.76540602]
[1754154905448,5.51946076,162.4,162.39,4.08540602]
[1754154905948,5.51946076,162.4,162.37,0.06]
[1754154906160,5.51946076,162.4,162.39,4.08540602]
[1754154906161,8.94560025,162.4,162.39,4.08540602]
[1754154906353,52.36560025,162.4,162.38,4.08540602]
[1754154906555,48.22946076,162.4,162.38,4.08540602]
[1754154906881,0.71,162.39,162.38,4.08540602]
[1754154907382,4.84730362,162.39,162.37,0.06]
[1754154907552,43.42,162.38,162.37,0.06]
[1754154907753,48.26730362,162.38,162.37,0.06]
[1754154908174,65.05198759,162.38,162.37,0.06]